bitfinex/quotes_BTCUSD_20260315
["timestamp","ask_amount","ask_price","bid_price","bid_amount"]
[1773547363299,0.07168179,71366.0,71356.0,0.07007119]
[1773547363898,0.084049,71365.0,71356.0,0.07007119]
[1773547365222,0.15411151,71365.0,71356.0,0.07007119]
[1773547368489,0.07006251,71365.0,71354.0,0.0002]
[1773547368644,0.084049,71364.0,71354.0,0.07027311]
[1773547370272,0.07006431,71363.0,71354.0,0.07027311]
[1773547373099,0.1543331,71364.0,71354.0,0.07027311]
[1773547373100,0.00022001,71364.0,71355.0,0.08280706]
[1773547374559,0.00022001,71364.0,71356.0,0.07007119]
[1773547380629,0.00022001,71364.0,71356.0,0.15287825]
[1773547380982,0.00022001,71364.0,71357.0,0.08280706]
[1773547381180,0.00022001,71366.0,71357.0,0.08280706]
[1773547381380,0.01219061,71367.0,71357.0,0.08280706]
[1773547382011,0.01219061,71367.0,71358.0,0.07006922]
[1773547382206,0.00037001,71372.0,71360.0,0.08280706]
[1773547382375,0.00037001,71372.0,71362.0,0.08280706]
[1773547382575,0.00022001,71375.0,71362.0,0.08280706]
[1773547382926,0.00022001,71375.0,71362.0,0.08265787]
[1773547383080,0.00022001,71375.0,71362.0,0.08250868]
[1773547383809,0.00032749,71375.0,71362.0,0.08250868]
[1773547384009,0.00032749,71375.0,71363.0,0.15287137]
[1773547385229,0.0837681,71374.0,71360.0,0.07006431]
[1773547385528,0.0837681,71374.0,71359.0,0.07006807]
[1773547385919,0.0700545,71373.0,71355.0,0.07007217]
[1773547386084,0.1538226,71373.0,71355.0,0.07007217]
[1773547386285,0.0014,71372.0,71355.0,0.07007217]
[1773547386688,0.0851681,71372.0,71355.0,0.07007217]
[1773547388043,0.07005646,71371.0,71355.0,0.07007217]
[1773547388675,0.0014,71370.0,71355.0,0.07007217]
[1773547390418,0.0014,71369.0,71356.0,0.08280706]
[1773547390805,0.0014,71369.0,71356.0,0.08265787]
[1773547392365,0.07145926,71369.0,71357.0,0.07007021]
[1773547393935,0.07145926,71369.0,71356.0,0.03006629]
[1773547394241,0.0700545,71373.0,71360.0,0.08280706]
[1773547394567,0.0700545,71373.0,71361.0,0.07006628]
[1773547394773,0.00022001,71369.0,71361.0,0.07006628]
[1773547395073,0.00032749,71375.0,71361.0,0.07006628]
[1773547395277,0.0014,71372.0,71361.0,0.15287334]
[1773547396416,0.0014,71372.0,71361.0,0.15272416]
[1773547396623,0.00032749,71375.0,71362.0,0.08280706]
[1773547398600,0.00032749,71375.0,71363.0,0.07006431]
[1773547398789,0.00032749,71375.0,71364.0,0.0014]
[1773547399622,0.00032749,71375.0,71365.0,0.08280706]
[1773547400707,0.00032749,71375.0,71366.0,0.07006137]
[1773547401122,0.07160495,71380.0,71366.0,0.07006137]
[1773547401328,0.07004967,71378.0,71366.0,0.07006137]
[1773547401867,0.00022001,71375.0,71366.0,0.07006137]
[1773547402280,0.0016423,71380.0,71367.0,0.07900092]
[1773547402438,0.07019623,71389.0,71367.0,0.07900092]
[1773547402748,0.07019623,71389.0,71371.0,0.07005646]
[1773547402949,0.07019623,71389.0,71372.0,0.0014]
[1773547403150,0.07019623,71389.0,71372.0,0.08040092]
[1773547404032,0.07019623,71389.0,71373.0,0.0014]
[1773547404235,0.07019623,71389.0,71373.0,0.08040092]
[1773547404455,0.07019623,71389.0,71373.0,0.07900092]
[1773547404749,0.07019623,71389.0,71374.0,0.0014]
[1773547404915,0.07019623,71389.0,71374.0,0.07005352]
[1773547405114,0.07019623,71389.0,71375.0,0.0014]
[1773547405527,0.000157,71389.0,71375.0,0.0014]
[1773547406193,0.0014,71388.0,71375.0,0.0014]
[1773547407027,0.000157,71389.0,71376.0,0.07005155]
[1773547407271,0.0014,71388.0,71376.0,0.07005155]
[1773547407670,0.0015145,71388.0,71376.0,0.07005155]
[1773547408828,0.00173451,71388.0,71376.0,0.07005155]
[1773547409387,0.07004076,71387.0,71376.0,0.07005155]
[1773547411652,0.07004076,71387.0,71375.0,0.15045247]
[1773547412149,0.07004076,71387.0,71375.0,0.07145155]
[1773547413129,0.07004076,71387.0,71375.0,0.07005155]
[1773547413463,0.00035013,71401.0,71377.0,0.05889319]
[1773547413666,0.0703776,71401.0,71390.0,0.04488536]
[1773547413885,0.07037737,71401.0,71390.0,0.04488536]
[1773547414072,0.00035013,71401.0,71390.0,0.04488536]
[1773547415642,0.00035013,71401.0,71391.0,0.07003683]
[1773547416109,0.01534271,71404.0,71391.0,0.07003683]
[1773547416307,0.01534271,71404.0,71394.0,0.05889319]
[1773547416626,0.01534271,71404.0,71392.0,0.08040092]
[1773547416627,0.01534271,71404.0,71392.0,0.0014]
[1773547416852,0.00022001,71401.0,71394.0,0.05889319]
[1773547417612,0.01534271,71404.0,71395.0,0.07003291]
[1773547417809,0.06332236,71415.0,71396.0,0.07900092]
[1773547418010,0.07516921,71414.0,71400.0,0.05889319]
[1773547418340,0.00022001,71416.0,71404.0,0.05889319]
[1773547418702,0.00022001,71416.0,71404.0,0.13789411]
[1773547418906,0.07000874,71420.0,71404.0,0.05889319]
[1773547419158,0.07000874,71420.0,71409.0,0.05889319]
[1773547419812,0.07000874,71420.0,71410.0,0.0700182]
[1773547419813,0.00035004,71419.0,71410.0,0.0700182]
[1773547420093,0.07035967,71419.0,71410.0,0.0700182]
[1773547422187,0.07035967,71419.0,71408.0,0.0700182]
[1773547422501,0.07516921,71418.0,71406.0,0.07002212]
[1773547424081,0.07516921,71418.0,71397.0,0.07003095]
[1773547424284,0.07516921,71416.0,71397.0,0.07003095]
[1773547424688,0.0014,71415.0,71397.0,0.07003095]
[1773547424893,0.07001134,71417.0,71398.0,0.07900092]
[1773547425201,0.07656921,71416.0,71398.0,0.07900092]
[1773547425409,0.07656921,71416.0,71400.0,0.05889319]
[1773547425605,0.07001134,71417.0,71400.0,0.05889319]
[1773547425780,0.07001134,71417.0,71401.0,0.07900092]
[1773547426194,0.07001134,71417.0,71402.0,0.07002604]
[1773547426496,0.07516921,71416.0,71402.0,0.07002604]
[1773547426822,0.07516921,71416.0,71403.0,0.0014]
[1773547427339,0.07516921,71418.0,71403.0,0.0014]
[1773547427756,0.00057005,71419.0,71408.0,0.05889319]
[1773547427932,6e-05,71424.0,71408.0,0.05889319]
[1773547428138,0.07006477,71424.0,71408.0,0.05889319]
[1773547428453,6e-05,71424.0,71414.0,0.05889319]
[1773547428952,6e-05,71424.0,71415.0,0.0014]
[1773547429361,0.00022001,71427.0,71416.0,0.07900092]
[1773547429575,0.00057807,71427.0,71416.0,0.07900092]
[1773547430663,0.00057807,71427.0,71417.0,0.07001134]
[1773547432112,0.06937101,71437.0,71418.0,0.07695699]
[1773547432393,0.06947839,71437.0,71430.0,0.05889319]
[1773547432720,0.00010738,71437.0,71428.0,0.06999958]
[1773547433448,0.00022001,71435.0,71428.0,0.06999958]
[1773547434073,0.00022001,71435.0,71430.0,0.001]
[1773547434911,0.00022001,71435.0,71431.0,0.06999762]
[1773547436369,0.00022001,71435.0,71429.0,0.03709979]
[1773547436571,0.08168814,71434.0,71428.0,0.0014]
[1773547437013,0.08168814,71434.0,71428.0,0.07140054]
[1773547437246,0.07021418,71435.0,71428.0,0.07140054]
[1773547437382,0.07021418,71435.0,71428.0,0.07000054]
[1773547437784,0.00022001,71435.0,71428.0,0.07000054]
[1773547437983,0.07021396,71435.0,71428.0,0.07000054]
[1773547438817,0.07021396,71435.0,71426.0,0.07000242]
[1773547439020,0.08168814,71434.0,71425.0,0.07000346]
[1773547439219,0.08168814,71434.0,71426.0,0.07000242]
[1773547440360,0.07021396,71435.0,71426.0,0.07000242]
[1773547440634,0.07021396,71435.0,71424.0,0.0014]
[1773547440635,0.00022001,71435.0,71424.0,0.0014]
[1773547441761,0.00022001,71435.0,71425.0,0.05889319]
[1773547441940,0.00022001,71435.0,71426.0,0.07695699]
[1773547442701,0.00022001,71435.0,71427.0,0.07000154]
[1773547443713,0.07021386,71435.0,71427.0,0.07000154]
[1773547444453,0.08168814,71434.0,71427.0,0.0014]
[1773547444603,0.08168814,71434.0,71427.0,0.07140154]
[1773547445216,0.00022001,71435.0,71427.0,0.07000154]
[1773547446828,5e-05,71452.0,71432.0,0.07695699]
[1773547447052,0.0700273,71452.0,71442.0,0.05889319]
[1773547447249,0.06997613,71453.0,71443.0,0.0014]
[1773547447458,0.07032555,71454.0,71443.0,0.0014]
[1773547448100,0.08168814,71453.0,71440.0,0.17045961]
[1773547448374,0.07032555,71454.0,71443.0,0.0014]
[1773547448853,0.07032555,71454.0,71444.0,0.06998488]
[1773547450063,0.08168814,71453.0,71442.0,0.07138609]
[1773547450869,0.06997704,71452.0,71442.0,0.07138609]
[1773547452521,0.06997704,71452.0,71443.0,0.07695699]
[1773547453074,0.06997704,71452.0,71442.0,0.07138609]
[1773547457152,0.06997704,71452.0,71442.0,0.18295251]
[1773547459995,0.08168814,71451.0,71437.0,0.11121407]
[1773547460198,0.07019705,71452.0,71434.0,0.23896635]
[1773547460199,0.00022001,71452.0,71440.0,0.05874941]
[1773547460371,0.0014,71451.0,71440.0,0.05874941]
[1773547461334,0.08168814,71449.0,71440.0,0.06998877]
[1773547462107,0.00056988,71454.0,71440.0,0.06998877]
[1773547462334,0.06997125,71458.0,71447.0,0.05874941]
[1773547462539,0.06997087,71459.0,71443.0,0.07966728]
[1773547462739,0.00152,71457.0,71443.0,0.07966728]
[1773547463808,0.00152,71457.0,71440.0,0.12873818]
[1773547464006,0.00152,71457.0,71440.0,0.20840546]
[1773547464238,0.00152,71457.0,71441.0,0.07966728]
[1773547466350,0.00152,71457.0,71442.0,0.06998684]
[1773547466728,0.00012,71457.0,71443.0,0.07966728]
[1773547467321,0.00012,71457.0,71447.0,0.05874941]
[1773547468188,0.00012,71457.0,71448.0,0.06998096]
[1773547468613,0.00012,71457.0,71449.0,0.07966728]
[1773547469141,0.00034001,71457.0,71449.0,0.07966728]
[1773547470129,0.00034001,71457.0,71448.0,0.06998096]
[1773547470529,0.00034001,71457.0,71448.0,0.14964824]
[1773547470923,0.00034001,71457.0,71449.0,0.07966728]
[1773547471525,0.0002216,71460.0,71449.0,0.07966728]
[1773547471729,0.00032894,71460.0,71449.0,0.07966728]
[1773547471938,0.00032894,71460.0,71448.0,0.06998096]
[1773547472141,0.07862242,71458.0,71447.0,0.06998191]
[1773547472506,0.06997215,71457.0,71441.0,0.0699873]
[1773547472728,0.06997215,71457.0,71442.0,0.07966728]
[1773547472924,0.00032894,71460.0,71448.0,0.07966728]
[1773547473149,0.00172894,71460.0,71448.0,0.0795181]
[1773547474055,9.624e-05,71459.0,71448.0,0.0795181]
[1773547474856,9.624e-05,71459.0,71449.0,0.06997998]
[1773547475855,9.624e-05,71459.0,71449.0,0.14964726]
[1773547476245,9.624e-05,71459.0,71450.0,0.07966728]
[1773547476844,9.624e-05,71459.0,71451.0,0.06997802]
[1773547477665,9.624e-05,71459.0,71452.0,0.0014]
[1773547478168,0.00031625,71459.0,71452.0,0.0014]
[1773547478942,0.00031625,71459.0,71448.0,0.06997802]
[1773547478943,0.06997117,71458.0,71447.0,0.06998157]
[1773547479139,0.07862242,71457.0,71447.0,0.06998157]
[1773547480089,0.07137117,71458.0,71447.0,0.06143429]
[1773547480302,0.0014,71458.0,71447.0,0.19985098]
[1773547480467,0.0014,71458.0,71448.0,0.07966728]
[1773547480866,0.00022001,71459.0,71448.0,0.07966728]
[1773547481075,0.00022001,71459.0,71449.0,0.14964726]
[1773547481303,0.00022001,71459.0,71449.0,0.06997998]
[1773547481508,0.07019112,71459.0,71449.0,0.06997998]
[1773547482011,9.624e-05,71458.0,71449.0,0.06997998]
[1773547483387,0.0001763,71459.0,71448.0,0.06997998]
[1773547486398,0.0001763,71459.0,71448.0,0.07017998]
[1773547487038,0.07862242,71458.0,71445.0,0.16688777]
[1773547487196,0.0001763,71459.0,71441.0,0.0002]
[1773547487197,0.07862242,71456.0,71441.0,0.0002]
[1773547487411,0.06997998,71449.0,71435.0,0.23688059]
[1773547487627,0.08002242,71448.0,71435.0,0.06999282]
[1773547487841,0.08002242,71448.0,71434.0,0.06999439]
[1773547488480,0.0014,71448.0,71434.0,0.06999439]
[1773547488883,0.0014,71448.0,71435.0,0.07966728]
[1773547489045,0.0014,71448.0,71434.0,0.06999439]
[1773547489431,0.06998194,71447.0,71434.0,0.06999439]
[1773547494563,0.06998194,71447.0,71433.0,0.0701949]
[1773547494760,0.07694379,71446.0,71433.0,0.0701949]
[1773547495797,0.07694379,71446.0,71434.0,0.0002]
[1773547496307,0.07694379,71444.0,71434.0,0.0002]
[1773547497783,0.07138194,71448.0,71434.0,0.0002]
[1773547497784,0.06998057,71449.0,71434.0,0.0701943]
[1773547497984,0.0015763,71459.0,71435.0,0.07170238]
[1773547497985,0.06997785,71452.0,71435.0,0.07170238]
[1773547498180,0.06997704,71454.0,71437.0,0.07170238]
[1773547498380,0.06997704,71454.0,71439.0,0.07170238]
[1773547498589,0.06996692,71463.0,71441.0,0.07170238]
[1773547498807,0.06997119,71458.0,71441.0,0.07170238]
[1773547499034,0.07007851,71460.0,71441.0,0.07170238]
[1773547499571,0.07014668,71459.0,71441.0,0.07170238]
[1773547500128,0.03933201,71460.0,71450.0,0.07170238]
[1773547500282,0.06996786,71462.0,71452.0,0.07170238]
[1773547500485,0.06995873,71471.0,71452.0,0.07180972]
[1773547500833,0.06995844,71471.0,71456.0,0.07170238]
[1773547501606,0.06995844,71471.0,71457.0,0.0014]
[1773547502913,0.06995844,71471.0,71458.0,0.06997117]
[1773547504023,0.07694379,71470.0,71456.0,0.06997249]
[1773547504235,0.07694379,71470.0,71456.0,0.07137249]
[1773547504657,0.07694379,71468.0,71456.0,0.07137249]
[1773547505308,0.07694379,71466.0,71453.0,0.0014]
[1773547506567,0.07694379,71466.0,71452.0,0.00010734]
[1773547506802,0.07694379,71466.0,71452.0,0.00150734]
[1773547507019,0.06996236,71467.0,71453.0,0.07310238]
[1773547507211,0.07006966,71467.0,71454.0,0.06997508]
[1773547507461,0.07006966,71467.0,71455.0,0.07170238]
[1773547509400,0.07006966,71467.0,71456.0,0.14167551]
[1773547515441,0.07006966,71467.0,71456.0,0.06997313]
[1773547515758,0.06436734,71470.0,71459.0,0.07170238]
[1773547516082,0.06436734,71470.0,71459.0,0.07320968]
[1773547517388,0.06436734,71470.0,71459.0,0.0015073]
[1773547517599,0.00034978,71472.0,71460.0,0.06996921]
[1773547517768,0.14725127,71472.0,71460.0,0.06996921]
[1773547518168,0.07729357,71472.0,71460.0,0.06996921]
[1773547518363,0.07012605,71472.0,71460.0,0.06996921]
[1773547518562,0.06994683,71472.0,71460.0,0.06996921]
[1773547518785,0.0697676,71472.0,71460.0,0.06996921]
[1773547519396,0.00022001,71471.0,71460.0,0.06996921]
[1773547520656,0.00022001,71471.0,71460.0,0.12869473]
[1773547522037,0.00022001,71471.0,71461.0,0.0752948]
[1773547522256,0.0696569,71473.0,71460.0,0.12869473]
[1773547522408,0.14127812,71473.0,71460.0,0.12869473]
[1773547524064,0.07162122,71474.0,71460.0,0.12869473]
[1773547525620,0.00049969,71490.0,71464.0,0.05872552]
[1773547525790,0.00049969,71490.0,71462.0,0.11111082]
[1773547525791,0.07162122,71485.0,71470.0,0.05872552]
[1773547526245,0.06994572,71484.0,71471.0,0.06995844]
[1773547527038,0.0014,71483.0,71471.0,0.06995844]
[1773547527183,0.07302122,71483.0,71471.0,0.06995844]
[1773547527614,0.07302122,71483.0,71471.0,0.18106926]
[1773547528213,0.06994767,71482.0,71472.0,0.11111082]
[1773547528571,0.06984767,71482.0,71472.0,0.11111082]
[1773547528796,0.06994763,71483.0,71472.0,0.11111082]
[1773547529012,0.00022001,71481.0,71472.0,0.11111082]
[1773547529625,5.501e-05,71481.0,71473.0,0.0752948]
[1773547529776,4.685e-05,71486.0,71473.0,0.0752948]
[1773547529977,0.06959472,71488.0,71473.0,0.11111082]
[1773547530235,0.07162122,71485.0,71474.0,0.0699555]
[1773547531497,0.07162122,71485.0,71473.0,0.0709555]
[1773547532288,0.07162122,71483.0,71470.0,0.11126342]
[1773547532485,0.07162122,71481.0,71470.0,0.0001526]
[1773547532681,0.07162122,71481.0,71465.0,0.06996347]
[1773547533447,0.06994572,71484.0,71466.0,0.0752948]
[1773547533736,0.0014,71480.0,71466.0,0.0752948]
[1773547534235,0.06994572,71484.0,71466.0,0.0752948]
[1773547534441,0.06995061,71479.0,71468.0,0.0752948]
[1773547534998,0.06995061,71479.0,71467.0,0.06996236]
[1773547535245,0.07162122,71478.0,71467.0,0.06996236]
[1773547536539,0.06995257,71477.0,71463.0,0.06996627]
[1773547536741,0.07162122,71476.0,71463.0,0.06996627]
[1773547537095,0.0014,71480.0,71463.0,0.06996627]
[1773547537096,0.07016395,71486.0,71467.0,0.0752948]
[1773547537237,0.07016395,71486.0,71471.0,0.0752948]
[1773547537435,0.07016395,71486.0,71472.0,0.0766948]
[1773547539090,0.07016395,71486.0,71473.0,0.06995648]
[1773547539251,0.07162122,71485.0,71473.0,0.06995648]
[1773547539451,0.07162122,71485.0,71469.0,0.06996038]
[1773547540769,0.07162122,71485.0,71463.0,0.0699657]
[1773547541545,0.07162122,71483.0,71463.0,0.0699657]
[1773547541997,0.07162122,71483.0,71462.0,0.06996627]
[1773547542813,0.07016395,71486.0,71470.0,0.05872552]
[1773547543017,0.07016395,71486.0,71465.0,0.0752948]
[1773547543018,0.07162122,71485.0,71465.0,0.0752948]
[1773547543620,0.0014,71484.0,71467.0,0.0752948]
[1773547544027,0.0014,71483.0,71467.0,0.0752948]
[1773547544544,0.0014,71483.0,71470.0,0.05872552]
[1773547544847,0.0014,71483.0,71470.0,0.06012552]
[1773547546107,0.06994767,71482.0,71471.0,0.06995844]
[1773547546310,0.06994767,71482.0,71470.0,0.02047388]
[1773547546511,0.06994767,71482.0,71471.0,0.06995844]
[1773547549081,0.07966151,71487.0,71471.0,0.06995844]
[1773547549082,0.07162122,71495.0,71480.0,0.05872552]
[1773547549372,0.07162122,71495.0,71472.0,0.16688777]
[1773547549529,0.07162122,71495.0,71478.0,0.0014]
[1773547549736,0.07162122,71495.0,71475.0,0.0014]
[1773547550048,0.07162122,71495.0,71474.0,0.0014]
[1773547550857,0.07162122,71495.0,71471.0,0.07235844]
[1773547551063,0.07381085,71493.0,71471.0,0.07095844]
[1773547551234,0.07381085,71493.0,71471.0,0.07235844]
[1773547551436,0.07381085,71493.0,71471.0,0.07095844]
[1773547551643,0.0014,71492.0,71471.0,0.07135844]
[1773547552044,0.07307419,71491.0,71472.0,0.001]
[1773547552375,0.07447419,71493.0,71471.0,0.07135844]
[1773547552752,0.07447419,71493.0,71471.0,0.0014]
[1773547553079,0.07307419,71488.0,71469.0,0.07135947]
[1773547553274,0.07307419,71486.0,71469.0,0.06995947]
[1773547553473,0.07307419,71486.0,71468.0,0.07136131]
[1773547553855,0.07307419,71486.0,71468.0,0.06996131]
[1773547554066,0.07307419,71486.0,71467.0,0.07136176]
[1773547554264,0.07307419,71486.0,71467.0,0.06996176]
[1773547554840,0.07307419,71486.0,71470.0,0.0002]
[1773547555045,0.06994474,71485.0,71470.0,0.0002]
[1773547555261,0.07307419,71484.0,71470.0,0.0002]
[1773547558390,0.0699467,71483.0,71471.0,0.06995844]
[1773547558966,0.0014,71482.0,71471.0,0.06995844]
[1773547559163,0.05872552,71481.0,71465.0,0.06996403]
[1773547559435,0.07307419,71480.0,71460.0,0.06996863]
[1773547559912,0.07307419,71480.0,71459.0,0.07047149]
[1773547560088,0.07307419,71480.0,71459.0,0.0005014]
[1773547560291,0.07307419,71480.0,71464.0,0.07044059]
[1773547560292,0.06995061,71479.0,71464.0,0.07044059]
[1773547560490,0.07135061,71479.0,71464.0,0.07044059]
[1773547560694,0.06995061,71479.0,71464.0,0.07044059]
[1773547560891,0.0699418,71488.0,71470.0,0.07044059]
[1773547561098,0.0014,71487.0,71470.0,0.07184059]
[1773547561668,0.0699418,71488.0,71470.0,0.07184059]
[1773547561669,0.0014,71486.0,71470.0,0.07184059]
[1773547562279,0.06994474,71485.0,71471.0,0.06995844]
[1773547562924,0.06993719,71493.0,71471.0,0.06995844]
[1773547563079,0.06993593,71494.0,71479.0,0.05872552]
[1773547563496,0.00022001,71490.0,71476.0,0.07044059]
[1773547564478,0.06994083,71489.0,71477.0,0.14039316]
[1773547564911,0.06994083,71489.0,71478.0,0.0014]
[1773547565331,0.06994083,71489.0,71479.0,0.0014]
[1773547566562,0.06994083,71489.0,71480.0,0.06994963]
[1773547567824,0.01188833,71497.0,71480.0,0.06994963]
[1773547567825,0.06992485,71506.0,71488.0,0.12916611]
[1773547568027,0.06992485,71506.0,71489.0,0.07044059]
[1773547568624,0.0014,71505.0,71490.0,0.06993985]
[1773547569080,0.00175793,71505.0,71490.0,0.06993985]
[1773547569379,0.07307419,71504.0,71490.0,0.06993985]
[1773547569923,0.07307419,71504.0,71485.0,0.07134446]
[1773547570365,0.07027381,71508.0,71485.0,0.07134446]
[1773547570366,0.06992297,71508.0,71494.0,0.07044059]
[1773547570594,0.06992297,71508.0,71491.0,0.06993887]
[1773547570595,0.07318149,71508.0,71491.0,0.06993887]
[1773547570794,0.07318149,71508.0,71492.0,0.0014]
[1773547572143,0.07318149,71508.0,71488.0,0.06994107]
[1773547572344,0.00022001,71505.0,71493.0,0.0014]
[1773547572548,0.06992713,71503.0,71490.0,0.05872552]
[1773547572748,0.06992713,71503.0,71491.0,0.07184059]
[1773547574780,0.06992713,71503.0,71491.0,0.0014]
[1773547576639,0.06992713,71503.0,71491.0,0.07133865]
[1773547577041,0.06992391,71507.0,71491.0,0.07133865]
[1773547577042,0.07307419,71523.0,71493.0,0.05412945]
[1773547577235,0.07307419,71523.0,71495.0,0.16688777]
[1773547577466,0.07307419,71523.0,71496.0,0.05412945]
[1773547578444,0.07323609,71523.0,71496.0,0.05412945]
[1773547578655,0.07307419,71522.0,71493.0,0.1672457]
[1773547578851,0.07307419,71522.0,71497.0,0.0014]
[1773547579059,0.07307419,71520.0,71498.0,0.07133202]
[1773547579229,0.07323609,71520.0,71498.0,0.07133202]
[1773547579439,0.07047172,71525.0,71501.0,0.05508594]
[1773547579440,0.00056512,71525.0,71501.0,0.05508594]
[1773547579641,1e-08,71525.0,71511.0,0.05508594]
[1773547579825,1e-08,71525.0,71513.0,0.05508594]
[1773547580025,1e-08,71525.0,71515.0,0.05508594]
[1773547580223,1e-08,71525.0,71516.0,0.0014]
[1773547581175,1e-08,71525.0,71517.0,0.06991344]
[1773547581768,0.00022002,71525.0,71517.0,0.06991344]
[1773547582118,0.07023793,71543.0,71517.0,0.06991344]
[1773547582362,0.00022001,71533.0,71518.0,0.0014]
[1773547582564,0.00022001,71533.0,71519.0,0.0014]
[1773547583369,0.07116957,71541.0,71521.0,0.00082259]
[1773547584128,0.06989097,71540.0,71520.0,0.06991051]
[1773547584331,0.07116957,71539.0,71521.0,0.0014]
[1773547585420,0.06989292,71538.0,71522.0,0.06990855]
[1773547586397,0.0004256,71549.0,71528.0,0.1759989]
[1773547586654,0.0004256,71549.0,71528.0,0.17610613]
[1773547587333,0.0004256,71549.0,71529.0,0.06990171]
[1773547587531,0.0004256,71549.0,71530.0,0.0014]
[1773547588953,0.0004256,71549.0,71530.0,0.0024]
[1773547589302,0.0004256,71549.0,71531.0,0.06989976]
[1773547590019,0.0004256,71549.0,71532.0,0.0014]
[1773547590020,0.07685171,71548.0,71532.0,0.0014]
[1773547590839,0.14672412,71559.0,71538.0,0.1759989]
[1773547590992,0.14672412,71559.0,71532.0,0.0014]
[1773547591192,8.865e-05,71549.0,71532.0,0.0014]
[1773547591437,8.865e-05,71549.0,71533.0,0.20756171]
[1773547591614,8.865e-05,71549.0,71534.0,0.13766391]
[1773547591832,8.865e-05,71549.0,71535.0,0.13766391]
[1773547592030,8.865e-05,71549.0,71536.0,0.13766391]
[1773547592241,8.865e-05,71549.0,71537.0,0.13766391]
[1773547592443,8.865e-05,71549.0,71533.0,0.0698978]
[1773547592444,8.865e-05,71549.0,71538.0,0.13906391]
[1773547592668,8.865e-05,71549.0,71539.0,0.13766391]
[1773547594114,8.865e-05,71549.0,71540.0,0.06989097]
[1773547594315,8.865e-05,71549.0,71541.0,0.13766391]
[1773547594593,8.865e-05,71549.0,71540.0,0.06989097]
[1773547594806,8.865e-05,71549.0,71541.0,0.13765044]
[1773547595115,1e-08,71561.0,71540.0,0.06989097]
[1773547595314,1e-08,71561.0,71541.0,0.13762911]
[1773547595315,0.01124,71555.0,71541.0,0.13762911]
[1773547595463,1e-08,71561.0,71542.0,0.13762911]
[1773547595675,1e-08,71561.0,71543.0,0.13762911]
[1773547595982,1e-08,71561.0,71540.0,0.06989097]
[1773547595983,0.0014,71560.0,71544.0,0.13902911]
[1773547596311,1e-08,71561.0,71546.0,0.0698851]
[1773547596498,0.0014,71560.0,71547.0,0.13762911]
[1773547596805,0.0014,71560.0,71548.0,0.13762911]
[1773547596946,0.0014,71560.0,71546.0,0.0698851]
[1773547597152,0.0014,71565.0,71547.0,0.13760749]
[1773547597350,0.06986572,71566.0,71548.0,0.13760749]
[1773547597553,0.07126119,71571.0,71550.0,0.1759989]
[1773547597749,5e-05,71584.0,71551.0,0.13760749]
[1773547597953,0.07685171,71577.0,71552.0,0.13870827]
[1773547598252,0.07685171,71577.0,71553.0,0.07127827]
[1773547598253,0.14670662,71577.0,71553.0,0.07127827]
[1773547598495,0.07685171,71577.0,71553.0,0.07127827]
[1773547598699,0.00035757,71577.0,71553.0,0.07127827]
[1773547599079,1e-08,71578.0,71560.0,0.1759989]
[1773547599287,0.00010717,71578.0,71560.0,0.28598118]
[1773547599601,0.00010717,71578.0,71560.0,0.1759989]
[1773547599823,0.0699614,71578.0,71560.0,0.1759989]
[1773547600112,0.0699614,71578.0,71558.0,0.06987338]
[1773547600113,0.00010717,71578.0,71558.0,0.06987338]
[1773547600260,0.00032718,71578.0,71560.0,0.1759989]
[1773547602143,0.00032718,71578.0,71561.0,0.06987046]
[1773547602339,0.00032718,71578.0,71562.0,0.0014]
[1773547602548,1.37120392,71580.0,71563.0,0.0014]
[1773547602753,1.37120392,71580.0,71563.0,0.00175757]
[1773547603137,1.37120392,71580.0,71563.0,0.00035757]
[1773547603338,1.37120392,71580.0,71564.0,0.0014]
[1773547603726,1.37120392,71580.0,71565.0,0.0014]
[1773547604165,1.09328319,71580.0,71566.0,0.06986557]
[1773547604389,1.09328319,71580.0,71566.0,0.07126557]
[1773547607464,0.45698917,71580.0,71566.0,0.07126557]
[1773547609099,0.07676162,71579.0,71565.0,0.06986557]
[1773547609356,0.07676162,71579.0,71566.0,0.06986557]
[1773547609570,0.45698917,71580.0,71567.0,0.0014]
[1773547609907,0.45698917,71580.0,71568.0,0.13772658]
[1773547610107,0.45698917,71580.0,71569.0,0.13772658]
[1773547610317,0.45698917,71580.0,71571.0,0.06986069]
[1773547610537,0.45698917,71580.0,71572.0,0.13772658]
[1773547610739,0.45720918,71580.0,71572.0,0.13772658]
[1773547611725,0.45720918,71580.0,71572.0,0.13912658]
[1773547612061,0.45720918,71580.0,71573.0,0.13772658]
[1773547612293,1e-08,71605.0,71590.0,0.1759989]
[1773547612491,1e-08,71605.0,71576.0,0.17996849]
[1773547612492,0.07676162,71602.0,71576.0,0.17996849]
[1773547612669,0.07676162,71602.0,71576.0,0.06985581]
[1773547613456,0.07686874,71602.0,71576.0,0.06985581]
[1773547614427,0.06956389,71600.0,71576.0,0.06985581]
[1773547616622,0.00010712,71602.0,71580.0,0.1759989]
[1773547616846,0.07096389,71601.0,71581.0,0.0014]
[1773547617036,0.0014,71600.0,71581.0,0.0014]
[1773547617211,0.00010712,71602.0,71581.0,0.0014]
[1773547617212,0.00010712,71602.0,71581.0,0.07056179]
[1773547617381,0.0014,71601.0,71581.0,0.07056179]
[1773547617586,0.00010712,71602.0,71581.0,0.07056179]
[1773547617812,0.00010712,71602.0,71581.0,0.11162372]
[1773547618048,0.00010712,71602.0,71584.0,0.06916179]
[1773547618230,0.00010712,71602.0,71586.0,0.06916179]
[1773547618429,0.00010712,71602.0,71588.0,0.0698441]
[1773547618645,0.00010712,71602.0,71589.0,0.07056179]
[1773547619358,1e-08,71605.0,71589.0,0.07056179]
[1773547619536,1e-08,71605.0,71589.0,0.07066891]
[1773547619940,1e-08,71605.0,71589.0,0.00010712]
[1773547620143,0.0695639,71605.0,71587.0,0.0698441]
[1773547620481,0.06993503,71605.0,71588.0,0.0698441]
[1773547620773,0.06956389,71604.0,71588.0,0.0698441]
[1773547620929,0.06956389,71604.0,71589.0,0.001]
[1773547621131,0.06956389,71604.0,71589.0,0.002]
[1773547622271,1e-08,71608.0,71591.0,0.06916179]
[1773547622474,1e-08,71608.0,71592.0,0.0698402]
[1773547622650,1e-08,71608.0,71593.0,0.0014]
[1773547624136,1e-08,71608.0,71594.0,0.06916179]
[1773547624593,0.00034909,71614.0,71596.0,0.06916179]
[1773547624961,0.06956389,71613.0,71596.0,0.06916179]
[1773547625166,0.06956389,71613.0,71595.0,0.06983727]
[1773547626586,0.06956389,71612.0,71595.0,0.06983727]
[1773547630136,0.06956389,71612.0,71596.0,0.11022372]
[1773547630762,0.06956389,71612.0,71597.0,0.06983532]
[1773547631551,0.13938478,71612.0,71597.0,0.06983532]
[1773547632488,0.0014,71611.0,71597.0,0.06983532]
[1773547633720,0.06956389,71612.0,71600.0,0.05848421]
[1773547633879,0.0014,71611.0,71600.0,0.05848421]
[1773547635354,0.0014,71611.0,71601.0,0.06983142]
[1773547635836,0.00022001,71613.0,71601.0,0.06983142]
[1773547636243,0.00162001,71613.0,71601.0,0.06983142]